[Event "*** Titled Tuesday Blitz"]
[Site "Chess.com"]
[Date "2021.02.09"]
[Round "3"]
[White "JasperBeukema"]
[Black "ajedrez1101"]
[Result "1-0"]
[WhiteElo "2319"]
[BlackElo "2072"]
[TimeControl "180+1"]
[EndTime "10:27:54 PST"]
[Termination "JasperBeukema won on time"]

1. d4 {[%clk 0:03:00.9]} 1... b6 {[%clk 0:02:59.4]} 2. c4 {[%clk 0:02:55.6]}
2... Bb7 {[%clk 0:02:58.8]} 3. Nc3 {[%clk 0:02:53.2]} 3... e6 {[%clk 0:02:58.6]}
4. Nf3 {[%clk 0:02:42.7]} 4... Bb4 {[%clk 0:02:58.1]} 5. g3 {[%clk 0:02:41.5]}
5... Nf6 {[%clk 0:02:53.8]} 6. Bg2 {[%clk 0:02:41.8]} 6... O-O {[%clk
0:02:27.5]} 7. O-O {[%clk 0:02:40.8]} 7... Bxc3 {[%clk 0:02:25.5]} 8. bxc3
{[%clk 0:02:40.6]} 8... d6 {[%clk 0:02:25.7]} 9. c5 {[%clk 0:02:24.1]} 9... Nbd7
{[%clk 0:02:06.5]} 10. cxd6 {[%clk 0:02:13.1]} 10... cxd6 {[%clk 0:02:06.6]} 11.
Ba3 {[%clk 0:02:14]} 11... Qc7 {[%clk 0:02:00.9]} 12. Rc1 {[%clk 0:02:13.6]}
12... b5 {[%clk 0:01:31.5]} 13. Qd3 {[%clk 0:01:57.2]} 13... a6 {[%clk
0:01:24.6]} 14. c4 {[%clk 0:01:56.2]} 14... Be4 {[%clk 0:01:25]} 15. Qb3 {[%clk
0:01:53.7]} 15... bxc4 {[%clk 0:00:57.3]} 16. Rxc4 {[%clk 0:01:54.6]} 16... Qb6
{[%clk 0:00:57.5]} 17. Rfc1 {[%clk 0:01:15]} 17... Bd5 {[%clk 0:00:49.6]} 18.
Qxb6 {[%clk 0:01:13.7]} 18... Nxb6 {[%clk 0:00:49.4]} 19. Rc7 {[%clk 0:01:14.1]}
19... Rfc8 {[%clk 0:00:37.1]} 20. Bxd6 {[%clk 0:01:11.1]} 20... Rxc7 {[%clk
0:00:14.6]} 21. Rxc7 {[%clk 0:01:06.9]} 21... Nc4 {[%clk 0:00:10.1]} 22. Bf4
{[%clk 0:01:01]} 22... Ne4 {[%clk 0:00:04]} 23. Ne5 {[%clk 0:00:52.4]} 23...
Ned6 {[%clk 0:00:02.8]} 24. Nxc4 {[%clk 0:00:46.4]} 1-0

[Event "*** Titled Tuesday Blitz"]
[Site "Chess.com"]
[Date "2021.02.09"]
[Round "3"]
[White "anantone"]
[Black "Tenamu"]
[Result "1-0"]
[WhiteElo "2593"]
[BlackElo "2400"]
[TimeControl "180+1"]
[EndTime "10:27:56 PST"]
[Termination "anantone won by checkmate"]

1. c4 {[%clk 0:02:57.3]} 1... e5 {[%clk 0:02:58.5]} 2. g3 {[%clk 0:02:56.8]}
2... Nc6 {[%clk 0:02:58.4]} 3. Bg2 {[%clk 0:02:56.5]} 3... Bc5 {[%clk 0:02:59]}
4. e3 {[%clk 0:02:55.7]} 4... d6 {[%clk 0:02:58]} 5. Nc3 {[%clk 0:02:56]} 5...
a6 {[%clk 0:02:58.4]} 6. Nf3 {[%clk 0:02:56.1]} 6... f5 {[%clk 0:02:58.2]} 7. d4
{[%clk 0:02:55.8]} 7... exd4 {[%clk 0:02:56]} 8. exd4 {[%clk 0:02:56.7]} 8...
Ba7 {[%clk 0:02:56.4]} 9. O-O {[%clk 0:02:56.1]} 9... Nge7 {[%clk 0:02:56.2]}
10. d5 {[%clk 0:02:54.2]} 10... Ne5 {[%clk 0:02:56.1]} 11. Re1 {[%clk
0:02:45.7]} 11... O-O {[%clk 0:02:41.5]} 12. Nxe5 {[%clk 0:02:44.8]} 12... dxe5
{[%clk 0:02:42.4]} 13. Rxe5 {[%clk 0:02:44.7]} 13... Ng6 {[%clk 0:02:42.6]} 14.
Re1 {[%clk 0:02:43]} 14... f4 {[%clk 0:02:42.6]} 15. Rf1 {[%clk 0:02:25.7]}
15... fxg3 {[%clk 0:02:40]} 16. hxg3 {[%clk 0:02:25.5]} 16... Bf5 {[%clk
0:02:36.8]} 17. Be3 {[%clk 0:02:24.4]} 17... Bxe3 {[%clk 0:02:36.2]} 18. fxe3
{[%clk 0:02:25.3]} 18... Qg5 {[%clk 0:02:36.8]} 19. Qe1 {[%clk 0:02:03.2]} 19...
Ne5 {[%clk 0:02:33.1]} 20. Ne4 {[%clk 0:01:35.4]} 20... Bxe4 {[%clk 0:02:32.1]}
21. Bxe4 {[%clk 0:01:35.4]} 21... Rxf1+ {[%clk 0:02:31.7]} 22. Kxf1 {[%clk
0:01:36.3]} 22... Rf8+ {[%clk 0:02:31.2]} 23. Kg2 {[%clk 0:01:35.7]} 23... Qg4
{[%clk 0:02:31.1]} 24. Bc2 {[%clk 0:01:16.7]} 24... Qxc4 {[%clk 0:02:13.6]} 25.
Rc1 {[%clk 0:01:02.9]} 25... Nf3 {[%clk 0:02:03.5]} 26. Bxh7+ {[%clk 0:00:56.3]}
26... Kxh7 {[%clk 0:01:56.1]} 27. Qh1+ {[%clk 0:00:56.1]} 27... Nh4+ {[%clk
0:01:56.6]} 28. Qxh4+ {[%clk 0:00:45.9]} 28... Qxh4 {[%clk 0:01:56.7]} 29. gxh4
{[%clk 0:00:46.8]} 29... Rf7 {[%clk 0:01:57.2]} 30. Kg3 {[%clk 0:00:39.7]} 30...
Kg6 {[%clk 0:01:50.1]} 31. e4 {[%clk 0:00:37.3]} 31... Re7 {[%clk 0:01:48]} 32.
Kf4 {[%clk 0:00:37.1]} 32... Kf6 {[%clk 0:01:48.1]} 33. Rg1 {[%clk 0:00:28.4]}
33... c6 {[%clk 0:01:39.8]} 34. d6 {[%clk 0:00:27.2]} 34... Rf7 {[%clk
0:01:32.1]} 35. e5+ {[%clk 0:00:22.8]} 35... Ke6+ {[%clk 0:01:32.4]} 36. Ke4
{[%clk 0:00:23.4]} 36... Kd7 {[%clk 0:01:31]} 37. h5 {[%clk 0:00:22.2]} 37... c5
{[%clk 0:01:25.1]} 38. Kd5 {[%clk 0:00:21.5]} 38... Kd8 {[%clk 0:01:21.3]} 39.
Rg5 {[%clk 0:00:19]} 39... b5 {[%clk 0:01:20.1]} 40. e6 {[%clk 0:00:18.9]} 40...
Rf1 {[%clk 0:01:18.9]} 41. Rxg7 {[%clk 0:00:19.2]} 41... Rd1+ {[%clk 0:01:18.4]}
42. Kc6 {[%clk 0:00:19.5]} 42... Rc1 {[%clk 0:01:18.8]} 43. Rg8# {[%clk
0:00:19.5]} 1-0

[Event "*** Titled Tuesday Blitz"]
[Site "Chess.com"]
[Date "2021.02.09"]
[Round "3"]
[White "chescomhuynya"]
[Black "Skat2704"]
[Result "1-0"]
[WhiteElo "2478"]
[BlackElo "2514"]
[TimeControl "180+1"]
[EndTime "10:27:57 PST"]
[Termination "chescomhuynya won by checkmate"]

1. e4 {[%clk 0:03:00.9]} 1... c5 {[%clk 0:02:59.4]} 2. Nf3 {[%clk 0:03:00.9]}
2... Nc6 {[%clk 0:02:59.2]} 3. d4 {[%clk 0:02:59]} 3... cxd4 {[%clk 0:02:59.4]}
4. Nxd4 {[%clk 0:02:59.9]} 4... Nf6 {[%clk 0:02:59.5]} 5. Nc3 {[%clk 0:02:59.7]}
5... e6 {[%clk 0:03:00]} 6. Ndb5 {[%clk 0:02:57.2]} 6... Bb4 {[%clk 0:02:59.8]}
7. a3 {[%clk 0:02:57.1]} 7... Bxc3+ {[%clk 0:02:59.7]} 8. Nxc3 {[%clk 0:02:58]}
8... d5 {[%clk 0:03:00.1]} 9. Bd3 {[%clk 0:02:53.5]} 9... O-O {[%clk 0:02:42.9]}
10. O-O {[%clk 0:02:50.9]} 10... d4 {[%clk 0:02:43]} 11. Ne2 {[%clk 0:02:48.1]}
11... e5 {[%clk 0:02:42.8]} 12. h3 {[%clk 0:02:45.9]} 12... Re8 {[%clk 0:02:37]}
13. Ng3 {[%clk 0:02:13.3]} 13... h6 {[%clk 0:02:13.9]} 14. f4 {[%clk 0:02:03.8]}
14... exf4 {[%clk 0:02:12.1]} 15. Bxf4 {[%clk 0:02:04.7]} 15... Nd7 {[%clk
0:02:08.8]} 16. Qh5 {[%clk 0:02:01.2]} 16... Qa5 {[%clk 0:02:01.6]} 17. Nf5
{[%clk 0:01:57.9]} 17... Nf8 {[%clk 0:00:57.2]} 18. Bxh6 {[%clk 0:01:39.4]}
18... Bxf5 {[%clk 0:00:51.2]} 19. Rxf5 {[%clk 0:01:36.4]} 19... g6 {[%clk
0:00:42.1]} 20. Rxa5 {[%clk 0:01:25.9]} 20... gxh5 {[%clk 0:00:42.1]} 21. Rxh5
{[%clk 0:01:24.3]} 21... Ng6 {[%clk 0:00:42.3]} 22. Rf1 {[%clk 0:01:22.8]} 22...
Nce5 {[%clk 0:00:40.6]} 23. Rhf5 {[%clk 0:01:08.2]} 23... Rac8 {[%clk 0:00:39]}
24. R1f2 {[%clk 0:01:08.1]} 24... Re7 {[%clk 0:00:36.4]} 25. Bg5 {[%clk
0:01:07.7]} 25... Rd7 {[%clk 0:00:32.3]} 26. Bf6 {[%clk 0:01:07.2]} 26... Nxd3
{[%clk 0:00:32.1]} 27. cxd3 {[%clk 0:01:06.8]} 27... Rc1+ {[%clk 0:00:32.1]} 28.
Kh2 {[%clk 0:01:06.8]} 28... Rd1 {[%clk 0:00:32.4]} 29. R5f3 {[%clk 0:01:02.8]}
29... b5 {[%clk 0:00:29.9]} 30. h4 {[%clk 0:01:02.6]} 30... Nf8 {[%clk
0:00:20.5]} 31. Rg3+ {[%clk 0:01:00.4]} 31... Kh7 {[%clk 0:00:18.4]} 32. Rf5
{[%clk 0:00:57.2]} 32... Ng6 {[%clk 0:00:17.2]} 33. Rh5+ {[%clk 0:00:57.3]}
33... Kg8 {[%clk 0:00:17]} 34. Rh8# {[%clk 0:00:58.2]} 1-0

[Event "*** Titled Tuesday Blitz"]
[Site "Chess.com"]
[Date "2021.02.09"]
[Round "3"]
[White "KetiGrant"]
[Black "IsaacWiebe"]
[Result "1-0"]
[WhiteElo "2346"]
[BlackElo "2164"]
[TimeControl "180+1"]
[EndTime "10:27:59 PST"]
[Termination "KetiGrant won by resignation"]

1. e4 {[%clk 0:03:00.9]} 1... e6 {[%clk 0:03:00.3]} 2. d4 {[%clk 0:03:00.1]}
2... d5 {[%clk 0:03:00.5]} 3. Nc3 {[%clk 0:03:00.5]} 3... Bb4 {[%clk 0:02:59.9]}
4. e5 {[%clk 0:03:00.3]} 4... c5 {[%clk 0:03:00]} 5. a3 {[%clk 0:03:00.6]} 5...
Bxc3+ {[%clk 0:03:00.4]} 6. bxc3 {[%clk 0:03:01.5]} 6... Ne7 {[%clk 0:03:00.9]}
7. a4 {[%clk 0:02:56.1]} 7... Nbc6 {[%clk 0:02:59.9]} 8. Nf3 {[%clk 0:02:54.9]}
8... Qa5 {[%clk 0:02:59.8]} 9. Bd2 {[%clk 0:02:54.6]} 9... Bd7 {[%clk 0:03:00]}
10. Be2 {[%clk 0:02:50.7]} 10... c4 {[%clk 0:02:54.5]} 11. O-O {[%clk
0:02:49.6]} 11... f6 {[%clk 0:02:54.9]} 12. Re1 {[%clk 0:02:35]} 12... O-O-O
{[%clk 0:02:54.2]} 13. Qc1 {[%clk 0:02:26.2]} 13... Qc7 {[%clk 0:02:38.6]} 14.
Qa3 {[%clk 0:02:25]} 14... Be8 {[%clk 0:02:29.8]} 15. Bf1 {[%clk 0:02:18.5]}
15... Bf7 {[%clk 0:01:21.7]} 16. g3 {[%clk 0:02:16.4]} 16... Ng6 {[%clk
0:01:07.7]} 17. exf6 {[%clk 0:01:55.9]} 17... gxf6 {[%clk 0:01:07.1]} 18. Bh3
{[%clk 0:01:49.7]} 18... Rhe8 {[%clk 0:01:06.9]} 19. Bh6 {[%clk 0:01:45.5]}
19... Bg8 {[%clk 0:01:03.5]} 20. a5 {[%clk 0:01:38.3]} 20... a6 {[%clk
0:01:02.7]} 21. Qc5 {[%clk 0:01:23.5]} 21... Kb8 {[%clk 0:01:01.1]} 22. Reb1
{[%clk 0:01:17.2]} 22... e5 {[%clk 0:00:58.8]} 23. Rb6 {[%clk 0:01:14.3]} 23...
Qd6 {[%clk 0:00:34.9]} 24. Qxd6+ {[%clk 0:00:54.3]} 24... Rxd6 {[%clk
0:00:35.8]} 25. Rab1 {[%clk 0:00:54.1]} 25... Re7 {[%clk 0:00:05]} 26. Rxa6
{[%clk 0:00:53.7]} 26... Kc7 {[%clk 0:00:03.8]} 27. Rab6 {[%clk 0:00:52.3]}
27... Kb8 {[%clk 0:00:04.4]} 28. a6 {[%clk 0:00:51.2]} 28... Nd8 {[%clk
0:00:02.4]} 29. Rxd6 {[%clk 0:00:50.3]} 1-0

[Event "*** Titled Tuesday Blitz"]
[Site "Chess.com"]
[Date "2021.02.09"]
[Round "3"]
[White "Fandorine"]
[Black "Chessmasterzt"]
[Result "1-0"]
[WhiteElo "2865"]
[BlackElo "2621"]
[TimeControl "180+1"]
[EndTime "10:28:00 PST"]
[Termination "Fandorine won by checkmate"]

1. d4 {[%clk 0:03:00.9]} 1... Nf6 {[%clk 0:02:57.1]} 2. c4 {[%clk 0:03:00.9]}
2... c5 {[%clk 0:02:46.8]} 3. d5 {[%clk 0:02:57.8]} 3... e5 {[%clk 0:02:47.1]}
4. Nc3 {[%clk 0:02:55.1]} 4... d6 {[%clk 0:02:47.5]} 5. Nf3 {[%clk 0:02:52.7]}
5... Nbd7 {[%clk 0:02:41.7]} 6. e4 {[%clk 0:02:51.2]} 6... Be7 {[%clk
0:02:38.6]} 7. Be2 {[%clk 0:02:50.3]} 7... Nf8 {[%clk 0:02:33.6]} 8. a3 {[%clk
0:02:45]} 8... Ng6 {[%clk 0:02:28.9]} 9. h4 {[%clk 0:02:39.4]} 9... h5 {[%clk
0:02:09]} 10. g3 {[%clk 0:02:38.5]} 10... a6 {[%clk 0:01:49.6]} 11. Ng5 {[%clk
0:02:32.1]} 11... Ng4 {[%clk 0:01:33.4]} 12. Bd2 {[%clk 0:02:24.7]} 12... Rb8
{[%clk 0:01:28.6]} 13. Qc2 {[%clk 0:01:43.7]} 13... Bd7 {[%clk 0:01:27.4]} 14.
a4 {[%clk 0:01:42.9]} 14... b6 {[%clk 0:01:12.8]} 15. f3 {[%clk 0:01:22.7]}
15... Nh6 {[%clk 0:01:10.4]} 16. O-O-O {[%clk 0:01:19.7]} 16... b5 {[%clk
0:00:50.7]} 17. cxb5 {[%clk 0:01:16]} 17... axb5 {[%clk 0:00:50.4]} 18. Nxb5
{[%clk 0:01:15.9]} 18... f5 {[%clk 0:00:34.9]} 19. Ne6 {[%clk 0:01:14.1]} 19...
Bxe6 {[%clk 0:00:34.6]} 20. dxe6 {[%clk 0:01:15]} 20... f4 {[%clk 0:00:30.6]}
21. gxf4 {[%clk 0:01:15.4]} 21... Nxf4 {[%clk 0:00:24.4]} 22. Bxf4 {[%clk
0:01:15.6]} 22... exf4 {[%clk 0:00:25.3]} 23. e5 {[%clk 0:01:15.5]} 23... d5
{[%clk 0:00:15]} 24. Rxd5 {[%clk 0:01:08.7]} 24... Qc8 {[%clk 0:00:11.3]} 25.
Qg6+ {[%clk 0:01:07.8]} 25... Kf8 {[%clk 0:00:11]} 26. Rg1 {[%clk 0:01:02.8]}
26... Rg8 {[%clk 0:00:11.1]} 27. Nd6 {[%clk 0:01:01.7]} 27... Qc6 {[%clk
0:00:09]} 28. Qe4 {[%clk 0:00:58.4]} 28... Qb6 {[%clk 0:00:08.3]} 29. Bb5 {[%clk
0:00:58.3]} 29... Qa5 {[%clk 0:00:07.4]} 30. Qxf4+ {[%clk 0:00:58.1]} 30... Bf6
{[%clk 0:00:05.4]} 31. exf6 {[%clk 0:00:57.8]} 31... Qb4 {[%clk 0:00:06.3]} 32.
e7# {[%clk 0:00:57.4]} 1-0

[Event "*** Titled Tuesday Blitz"]
[Site "Chess.com"]
[Date "2021.02.09"]
[Round "3"]
[White "Matensien"]
[Black "Volodar_Murzin"]
[Result "1-0"]
[WhiteElo "2410"]
[BlackElo "2607"]
[TimeControl "180+1"]
[EndTime "10:28:03 PST"]
[Termination "Matensien won on time"]

1. d4 {[%clk 0:03:00.9]} 1... Nf6 {[%clk 0:02:59.6]} 2. c4 {[%clk 0:03:01.4]}
2... g6 {[%clk 0:02:58.7]} 3. Nf3 {[%clk 0:03:01.1]} 3... Bg7 {[%clk 0:02:57.2]}
4. Nc3 {[%clk 0:03:01.7]} 4... O-O {[%clk 0:02:57]} 5. e4 {[%clk 0:03:02.4]}
5... d6 {[%clk 0:02:55.9]} 6. Be2 {[%clk 0:03:02.8]} 6... e5 {[%clk 0:02:56]} 7.
O-O {[%clk 0:02:58.8]} 7... Nc6 {[%clk 0:02:51.3]} 8. Be3 {[%clk 0:02:59.2]}
8... Ng4 {[%clk 0:02:50.4]} 9. Bg5 {[%clk 0:02:58.1]} 9... f6 {[%clk 0:02:50.7]}
10. Bh4 {[%clk 0:02:58.7]} 10... h5 {[%clk 0:02:44.7]} 11. dxe5 {[%clk 0:02:39]}
11... g5 {[%clk 0:02:12.3]} 12. exf6 {[%clk 0:02:37.7]} 12... Bxf6 {[%clk
0:02:12.9]} 13. Bxg5 {[%clk 0:02:35.2]} 13... Be6 {[%clk 0:01:49.5]} 14. Bxf6
{[%clk 0:02:19]} 14... Qxf6 {[%clk 0:01:50.4]} 15. Nd5 {[%clk 0:02:16.4]} 15...
Qg7 {[%clk 0:01:49.7]} 16. Nh4 {[%clk 0:02:06.2]} 16... Nd4 {[%clk 0:01:46.7]}
17. h3 {[%clk 0:01:39.1]} 17... Nh6 {[%clk 0:00:48.6]} 18. Bxh5 {[%clk
0:01:37.6]} 18... Bxh3 {[%clk 0:00:42.1]} 19. Ng6 {[%clk 0:01:30.3]} 19... Be6
{[%clk 0:00:09.1]} 20. Nxc7 {[%clk 0:01:19.6]} 20... Bg4 {[%clk 0:00:02.1]} 21.
Bxg4 {[%clk 0:01:12.5]} 21... Qxg6 {[%clk 0:00:02.1]} 22. Qxd4 {[%clk
0:01:06.7]} 22... Nxg4 {[%clk 0:00:01.3]} 23. Qd5+ {[%clk 0:01:07.4]} 23... Kh8
{[%clk 0:00:01.3]} 24. Nxa8 {[%clk 0:01:04.2]} 24... Qh6 {[%clk 0:00:01.1]} 25.
Qg8+ {[%clk 0:00:46.4]} 1-0

[Event "*** Titled Tuesday Blitz"]
[Site "Chess.com"]
[Date "2021.02.09"]
[Round "3"]
[White "boasovietica"]
[Black "RafalBRC"]
[Result "1-0"]
[WhiteElo "2472"]
[BlackElo "2080"]
[TimeControl "180+1"]
[EndTime "10:28:04 PST"]
[Termination "boasovietica won by checkmate"]

1. e4 {[%clk 0:03:00.9]} 1... e6 {[%clk 0:02:58.7]} 2. d4 {[%clk 0:03:00]} 2...
d5 {[%clk 0:02:59.6]} 3. Nd2 {[%clk 0:02:59.9]} 3... dxe4 {[%clk 0:02:57.4]} 4.
Nxe4 {[%clk 0:02:59.7]} 4... Nd7 {[%clk 0:02:58]} 5. Nf3 {[%clk 0:02:59.3]} 5...
Ngf6 {[%clk 0:02:58.1]} 6. Bg5 {[%clk 0:02:56.3]} 6... Be7 {[%clk 0:02:57.5]} 7.
Bxf6 {[%clk 0:02:54.7]} 7... Nxf6 {[%clk 0:02:57.1]} 8. Bd3 {[%clk 0:02:54.8]}
8... Nxe4 {[%clk 0:02:54.6]} 9. Bxe4 {[%clk 0:02:54.1]} 9... c6 {[%clk
0:02:55.5]} 10. h4 {[%clk 0:02:41.5]} 10... Qb6 {[%clk 0:02:52.5]} 11. O-O
{[%clk 0:02:27.8]} 11... Qxb2 {[%clk 0:02:49.1]} 12. Ne5 {[%clk 0:02:17.1]}
12... Bf6 {[%clk 0:02:42.3]} 13. Rb1 {[%clk 0:02:05.7]} 13... Qxa2 {[%clk
0:02:37.3]} 14. Qh5 {[%clk 0:01:36.9]} 14... Bxe5 {[%clk 0:01:42.1]} 15. dxe5
{[%clk 0:01:32.7]} 15... Qc4 {[%clk 0:01:34.6]} 16. Qg4 {[%clk 0:01:14.7]} 16...
g6 {[%clk 0:01:25]} 17. h5 {[%clk 0:01:05.4]} 17... gxh5 {[%clk 0:01:10.1]} 18.
Qf4 {[%clk 0:00:55.6]} 18... b6 {[%clk 0:00:59.6]} 19. Rb4 {[%clk 0:00:50.7]}
19... Qc5 {[%clk 0:00:56.3]} 20. Rd1 {[%clk 0:00:48.8]} 20... Bb7 {[%clk
0:00:24.5]} 21. Rbd4 {[%clk 0:00:39.6]} 21... Qe7 {[%clk 0:00:22.2]} 22. Rd7
{[%clk 0:00:30.9]} 22... Qxd7 {[%clk 0:00:20.7]} 23. Rxd7 {[%clk 0:00:31]} 23...
Kxd7 {[%clk 0:00:21.6]} 24. Qxf7+ {[%clk 0:00:31.4]} 24... Kc8 {[%clk
0:00:21.5]} 25. Qxe6+ {[%clk 0:00:29.7]} 25... Kc7 {[%clk 0:00:21.5]} 26. Qe7+
{[%clk 0:00:28.4]} 26... Kb8 {[%clk 0:00:21.6]} 27. Qd6+ {[%clk 0:00:28.1]}
27... Kc8 {[%clk 0:00:21.8]} 28. Bf5# {[%clk 0:00:27.9]} 1-0

[Event "*** Titled Tuesday Blitz"]
[Site "Chess.com"]
[Date "2021.02.09"]
[Round "3"]
[White "Pantata007"]
[Black "bsnsun"]
[Result "0-1"]
[WhiteElo "2232"]
[BlackElo "2445"]
[TimeControl "180+1"]
[EndTime "10:28:04 PST"]
[Termination "bsnsun won on time"]

1. d4 {[%clk 0:03:00.9]} 1... Nf6 {[%clk 0:02:58.6]} 2. c4 {[%clk 0:03:00.7]}
2... e6 {[%clk 0:02:58.5]} 3. Nc3 {[%clk 0:03:01]} 3... d5 {[%clk 0:02:58]} 4.
cxd5 {[%clk 0:03:01]} 4... exd5 {[%clk 0:02:58.9]} 5. Bg5 {[%clk 0:03:01.2]}
5... Be7 {[%clk 0:02:59.3]} 6. e3 {[%clk 0:03:01.7]} 6... c6 {[%clk 0:02:59.6]}
7. Bd3 {[%clk 0:03:02.1]} 7... g6 {[%clk 0:02:54.4]} 8. Nge2 {[%clk 0:02:44.5]}
8... Nbd7 {[%clk 0:02:54.3]} 9. O-O {[%clk 0:02:35.1]} 9... Nh5 {[%clk 0:02:54]}
10. Bxe7 {[%clk 0:02:25.3]} 10... Qxe7 {[%clk 0:02:54.9]} 11. Qc2 {[%clk
0:02:18.6]} 11... O-O {[%clk 0:02:54.6]} 12. Rae1 {[%clk 0:02:18.8]} 12... Nb6
{[%clk 0:02:52.8]} 13. h3 {[%clk 0:02:03.9]} 13... Bd7 {[%clk 0:02:49.7]} 14. e4
{[%clk 0:01:53.6]} 14... dxe4 {[%clk 0:02:32.8]} 15. Nxe4 {[%clk 0:01:54.5]}
15... Nd5 {[%clk 0:02:26.1]} 16. a3 {[%clk 0:01:36.3]} 16... Rae8 {[%clk
0:02:24]} 17. Nc5 {[%clk 0:01:27.8]} 17... Bc8 {[%clk 0:02:19.2]} 18. Ng3 {[%clk
0:01:07.3]} 18... Qxe1 {[%clk 0:02:16.2]} 19. Rxe1 {[%clk 0:01:04.5]} 19...
Rxe1+ {[%clk 0:02:17.1]} 20. Kh2 {[%clk 0:01:04.9]} 20... Nhf4 {[%clk
0:02:15.2]} 21. Nge4 {[%clk 0:00:58.1]} 21... Nxd3 {[%clk 0:01:56.6]} 22. Qxd3
{[%clk 0:00:58.2]} 22... Bf5 {[%clk 0:01:57.1]} 23. g4 {[%clk 0:00:29.7]} 23...
Bxe4 {[%clk 0:01:51.7]} 24. Nxe4 {[%clk 0:00:30.6]} 24... Re8 {[%clk 0:01:51.9]}
25. f3 {[%clk 0:00:19.3]} 25... f5 {[%clk 0:01:50]} 26. Nd6 {[%clk 0:00:15.1]}
26... R8e2+ {[%clk 0:01:48.5]} 27. Kg3 {[%clk 0:00:14.6]} 27... f4+ {[%clk
0:01:36.4]} 28. Kh4 {[%clk 0:00:14.4]} 28... Re6 {[%clk 0:01:28.6]} 29. Nxb7
{[%clk 0:00:13]} 29... h6 {[%clk 0:01:27.9]} 30. Nc5 {[%clk 0:00:10.5]} 30...
g5+ {[%clk 0:01:27.7]} 31. Kh5 {[%clk 0:00:10.3]} 31... Kg7 {[%clk 0:01:02.2]}
32. Nxe6+ {[%clk 0:00:09.2]} 32... Rxe6 {[%clk 0:01:03.1]} 0-1

[Event "*** Titled Tuesday Blitz"]
[Site "Chess.com"]
[Date "2021.02.09"]
[Round "3"]
[White "niki_2003"]
[Black "ViktoriyaTarasova"]
[Result "0-1"]
[WhiteElo "2057"]
[BlackElo "2308"]
[TimeControl "180+1"]
[EndTime "10:28:04 PST"]
[Termination "ViktoriyaTarasova won by resignation"]

1. d4 {[%clk 0:03:00.9]} 1... Nf6 {[%clk 0:02:59.9]} 2. c4 {[%clk 0:03:01.1]}
2... e6 {[%clk 0:03:00.2]} 3. Nc3 {[%clk 0:02:59.4]} 3... Bb4 {[%clk 0:03:00.3]}
4. Qc2 {[%clk 0:02:59.5]} 4... d5 {[%clk 0:02:59.4]} 5. Bg5 {[%clk 0:02:54.4]}
5... h6 {[%clk 0:02:58.9]} 6. Bxf6 {[%clk 0:02:52.9]} 6... Qxf6 {[%clk
0:02:58.1]} 7. e3 {[%clk 0:02:53]} 7... O-O {[%clk 0:02:57.2]} 8. Nf3 {[%clk
0:02:46.2]} 8... c5 {[%clk 0:02:56.7]} 9. O-O-O {[%clk 0:02:44.5]} 9... cxd4
{[%clk 0:02:47.8]} 10. Nxd4 {[%clk 0:02:31.9]} 10... Bxc3 {[%clk 0:02:45.7]} 11.
Qxc3 {[%clk 0:02:30.8]} 11... dxc4 {[%clk 0:02:38.3]} 12. Bxc4 {[%clk
0:02:30.8]} 12... Bd7 {[%clk 0:02:33.3]} 13. Kb1 {[%clk 0:02:30]} 13... Rc8
{[%clk 0:02:31.2]} 14. Qd3 {[%clk 0:02:22.4]} 14... a6 {[%clk 0:02:26.8]} 15. f3
{[%clk 0:02:04.4]} 15... Nc6 {[%clk 0:02:22.2]} 16. Ne2 {[%clk 0:01:57.7]} 16...
Ne5 {[%clk 0:02:19.4]} 17. Qd6 {[%clk 0:01:44.1]} 17... Rxc4 {[%clk 0:02:14.7]}
18. f4 {[%clk 0:01:44.1]} 18... Ba4 {[%clk 0:01:38.4]} 19. fxe5 {[%clk
0:01:16.2]} 19... Qf5+ {[%clk 0:01:36.5]} 20. Qd3 {[%clk 0:01:12]} 20... Bxd1
{[%clk 0:01:33.2]} 21. Rxd1 {[%clk 0:01:05.7]} 21... Rd8 {[%clk 0:01:24.8]} 22.
Nd4 {[%clk 0:01:02.8]} 22... Qxd3+ {[%clk 0:01:05.6]} 23. Rxd3 {[%clk
0:01:01.7]} 23... Rc5 {[%clk 0:01:02.6]} 24. Rb3 {[%clk 0:00:54.6]} 24... b5
{[%clk 0:01:02.2]} 25. Rd3 {[%clk 0:00:53.2]} 25... Rxe5 {[%clk 0:01:01]} 26.
Rc3 {[%clk 0:00:46.3]} 26... Red5 {[%clk 0:01:00.8]} 27. Kc2 {[%clk 0:00:42.4]}
27... e5 {[%clk 0:00:59.6]} 28. Nf3 {[%clk 0:00:42.1]} 28... f6 {[%clk
0:00:56.1]} 29. h3 {[%clk 0:00:30.3]} 29... h5 {[%clk 0:00:54.9]} 30. Kb3 {[%clk
0:00:25.9]} 30... a5 {[%clk 0:00:54]} 31. a3 {[%clk 0:00:25.6]} 31... b4 {[%clk
0:00:49]} 32. Ka2 {[%clk 0:00:20.2]} 32... bxc3 {[%clk 0:00:48.1]} 33. bxc3
{[%clk 0:00:19.6]} 33... Rd3 {[%clk 0:00:47]} 34. Kb3 {[%clk 0:00:19.5]} 34...
Rxe3 {[%clk 0:00:46.9]} 0-1